fUST/lending_fUST_20250818
["ID","MTS","AMOUNT","RATE_DAILY","PERIOD"]
[380058221,1755516632293,-200.0,0.00020399,20]
[380058222,1755516632302,-161.997482,0.00020718,2]
[380058223,1755516632311,-351.08,0.00020949,2]
[380058224,1755516632320,-157.0,0.00021205,4]
[380058225,1755516632329,-420.0,0.00021777,2]
[380058226,1755516632338,-259.0,0.00021881,2]
[380058227,1755516632347,-526.62,0.00021901,2]
[380058228,1755516632356,-302.0,0.00021915,2]
[380058229,1755516632365,-480.0,0.00021917,2]
[380058230,1755516632374,-628.2,0.00021917,3]
[380058231,1755516632383,-480.0,0.00021917,3]
[380058232,1755516632393,-480.0,0.00021917,3]
[380058233,1755516632402,-480.0,0.00021977,3]
[380058234,1755516632411,-843.81736472,0.0002208,2]
[380058235,1755516632420,-216.85420361,0.0002208,2]
[380058236,1755516632430,-194.92,0.000221,2]
[380058237,1755516632440,-253.264,0.00022166,2]
[380058238,1755516632449,-121.38419038,0.00022191,3]
[380058243,1755516632539,163.736404,0.00013699,2]
[380058270,1755516638032,-506.81580962,0.00022191,3]
[380058271,1755516638042,-264.37,0.00022191,3]
[380058272,1755516638051,-480.0,0.00022191,3]
[380058273,1755516638060,-101.95848778,0.00022251,3]
[380058274,1755516638071,-378.04151222,0.00022251,3]
[380058275,1755516638080,-628.2,0.00022465,3]
[380058276,1755516638089,-375.82681177,0.00022465,3]
[380058277,1755516638098,-215.75323784,0.00022465,3]
[380058278,1755516638107,-204.9,0.00022465,3]
[380058279,1755516638117,-480.0,0.00022525,3]
[380058280,1755516638126,-600.0,0.00022695,20]
[380058281,1755516638135,-628.2,0.00022739,3]
[380058282,1755516638144,-503.32711868,0.0002276,2]
[380058283,1755516638153,-480.0,0.00022799,3]
[380058284,1755516638162,-702.16,0.00022853,2]
[380058285,1755516638171,-216.85420361,0.00023,3]
[380058286,1755516638180,-843.81736472,0.00023,3]
[380058287,1755516638189,-216.85420361,0.00023,3]
[380058289,1755516638198,-232.18122251,0.00023,3]
[380058290,1755516638207,-628.2,0.00023013,3]
[380058291,1755516638216,-480.0,0.00023073,3]
[380058292,1755516638225,-628.2,0.00023287,3]
[380058293,1755516638234,-480.0,0.00023347,3]
[380058294,1755516638243,-500.0,0.00023515,2]
[380058295,1755516638252,-500.0,0.00023515,2]
[380058296,1755516638261,-500.0,0.00023515,2]
[380058297,1755516638270,-500.0,0.00023515,2]
[380058298,1755516638279,-376.86903937,0.00023515,2]
[380058299,1755516638288,-482.98274003,0.00023515,2]
[380058300,1755516638297,-151.0,0.00023516,2]
[380058301,1755516638306,-8210.11934296,0.00023516,2]
[380058302,1755516638317,-290.4709797,0.00023516,2]
[380058303,1755516638328,-2431.09770889,0.00023516,2]
[380058304,1755516638343,-1222.32199608,0.00023516,2]
[380058305,1755516638355,-5688.51242037,0.00023516,2]
[380058306,1755516638366,-1000.0,0.00023516,2]
[380058307,1755516638377,-812.0,0.00023516,2]
[380058308,1755516638388,-628.2,0.00023561,3]
[380058309,1755516638399,-1007.10772573,0.000236,2]
[380058310,1755516638409,-480.0,0.00023621,3]
[380058311,1755516638419,-972.0,0.00023638,2]
[380058312,1755516638429,-2153.0,0.00023638,2]
[380058313,1755516638439,-637.0,0.00023638,2]
[380058314,1755516638450,-408.0,0.00023638,2]
[380058315,1755516638461,-587.0,0.00023712,2]
[380058316,1755516638471,-68.00625677,0.00023805,2]
[380058317,1755516638484,-809.69374323,0.00023805,2]
[380058318,1755516638494,-1019.27737775,0.00023829,2]
[380058319,1755516638504,-3556.36153746,0.00023829,2]
[380058320,1755516638516,-628.2,0.00023835,3]
[380058321,1755516638526,-1000.0,0.00023865,2]
[380058322,1755516638537,-258.65788659,0.00023873,2]
[380058323,1755516638547,-500.0,0.00023873,2]
[380058324,1755516638558,-500.92785999,0.00023873,2]
[380058325,1755516638568,-160.0,0.00023883,2]
[380058326,1755516638581,-512.66,0.0002389,3]
[380058327,1755516638591,-256.33,0.0002389,3]
[380058328,1755516638602,-769.02,0.0002389,3]
[380058329,1755516638613,-480.0,0.00023895,3]
[380058330,1755516638626,-232.50179276,0.00023899,2]
[380058331,1755516638636,-286.28380529,0.000239,2]
[380058332,1755516638647,-3583.33617253,0.000239,2]
[380058333,1755516638660,-91883.74763422,0.000239,2]
[380058334,1755516638673,-8009.38919688,0.000239,2]
[380058335,1755516638685,-8979.1275,0.000239,2]
[380058338,1755516640092,-1086.64761428,0.000239,2]
[380058339,1755516640149,-382.76199589,0.000239,2]
[380058340,1755516640162,-3303.94299894,0.000239,2]
[380058341,1755516640175,-3016.73255473,0.000239,2]
[380058342,1755516640188,-3694.95,0.000239,2]
[380058343,1755516640207,-7128.91025915,0.000239,2]
[380058344,1755516640221,-2468.41476691,0.000239,2]
[380058376,1755516643285,-24499.999995,0.000239,2]
[380058396,1755516646288,-200.0,0.0002389,2]
[380058397,1755516646299,-923.535582,0.000239,2]
[380058398,1755516646397,-20970.62867243,0.000239,2]
[380058412,1755517605120,-446.15369234,0.00018998,2]
[380058413,1755517667315,891.3424782,0.00018415,2]
[380058415,1755517673548,201.065863,0.00013699,2]
[380058517,1755517771166,-2507.24794775,0.000189,2]
[380058518,1755517771187,-1141.74446955,0.000189,2]
[380058519,1755517771208,-500.0,0.00018973,2]
[380058520,1755517771228,-300.0,0.00018989,2]
[380058521,1755517771249,-1345.9,0.0001899,3]
[380058522,1755517771269,-672.95,0.0001899,3]
[380058523,1755517771290,-336.47,0.0001899,3]
[380058524,1755517771310,-168.24,0.0001899,3]
[380058525,1755517771332,-504.72,0.0001899,3]
[380058526,1755517771352,-650.84630766,0.00018998,2]
[380058527,1755517771373,-1200.0,0.00018998,2]
[380058528,1755517771393,-17717.27720358,0.00018999,2]
[380058529,1755517771413,-300.0,0.00018999,2]
[380058530,1755517771435,-467.80412447,0.00018999,2]
[380058531,1755517771455,-368.9855298,0.00018999,2]
[380058532,1755517771476,-165.00602412,0.00018999,2]
[380058533,1755517771496,-314.30804778,0.00018999,2]
[380058534,1755517771516,-365.2317067,0.00018999,2]
[380058535,1755517771535,-187623.24420119,0.00019,2]
[380058544,1755517818186,5925.0,0.00028767,120]
[380058566,1755517832462,-280.62971984,0.000188,2]
[380058568,1755517832472,-85.86384294,0.00019,2]
[380058570,1755517832481,-1641.73532544,0.00019,2]
[380058572,1755517832491,-200.0,0.00019379,20]
[380058574,1755517832501,-200.0,0.00019379,20]
[380058576,1755517832511,-200.0,0.00019379,20]
[380058578,1755517832522,-200.0,0.00019379,20]
[380058580,1755517832531,-200.0,0.00019379,20]
[380058582,1755517832541,-200.0,0.00019379,20]
[380058584,1755517832550,-200.0,0.00019379,20]
[380058586,1755517832559,-200.0,0.00019379,20]
[380058588,1755517832568,-200.0,0.00019379,20]
[380058590,1755517832576,-200.0,0.00019379,20]
[380058592,1755517832585,-600.0,0.00019379,20]
[380058593,1755517832594,-178.13626422,0.00019902,2]
[380058595,1755517832603,-165.5239725,0.00019977,2]
[380058597,1755517832612,-164.5,0.00020061,2]
[380058599,1755517832621,-255.0,0.0002021,2]
[380058601,1755517832630,-160.65128319,0.00020215,2]
[380058603,1755517832640,-1141.74446955,0.0002035,2]
[380058605,1755517832649,-2691.8,0.0002036,3]
[380058607,1755517832658,-1345.9,0.0002036,3]
[380058609,1755517832668,-54.51665301,0.0002036,3]
[380058611,1755517832679,-618.42334699,0.0002036,3]
[380058613,1755517832691,-336.48,0.0002036,3]
[380058615,1755517832700,-161.9974836,0.00020584,2]
[380058617,1755517832710,-157.05118108,0.00021017,2]
[380058619,1755517832721,-171.93881892,0.00021017,2]
[380058621,1755517832730,-135.5040102,0.00021317,20]
[380058624,1755517832742,-544.32532797,0.00021317,20]
[380058626,1755517832755,-40.17066183,0.00021317,20]
[380058628,1755517832766,-1141.74446955,0.000218,2]
[380058630,1755517832775,-480.0,0.00021917,3]
[380058632,1755517832784,-480.0,0.00021917,3]
[380058634,1755517832793,-480.0,0.00021917,3]
[380058636,1755517832803,-480.0,0.00021917,3]
[380058638,1755517832811,-1763.72,0.00021917,3]
[380058639,1755517832820,-221.5457884,0.00021917,3]
[380058641,1755517832829,-480.0,0.00021917,3]
[380058643,1755517832839,-480.0,0.00021971,3]
[380058645,1755517832849,-480.0,0.00021971,3]
[380058647,1755517832859,-480.0,0.00021971,3]
[380058649,1755517832869,-493.49,0.00021972,2]
[380058651,1755517832878,-1382.23,0.00022,7]
[380058653,1755517832888,-3811.16,0.00022,7]
[380058655,1755517832898,-12146.41,0.00022,7]
[380058657,1755517832908,-154.87707939,0.00022073,2]
[380058659,1755517832922,-238.733,0.00022173,2]
[380058661,1755517832932,-480.0,0.00022191,3]
[380058663,1755517832941,-480.0,0.00022191,3]
[380058665,1755517832951,-480.0,0.00022191,3]
[380058667,1755517832962,-1763.72,0.00022191,3]
[380058669,1755517832971,-480.0,0.00022191,3]
[380058671,1755517832980,-250.0,0.00022243,2]
[380058673,1755517832989,-457.19900198,0.00022245,3]
[380058675,1755517833002,-42.80099802,0.00022245,3]
[380058677,1755517833012,-480.0,0.00022245,3]
[380058679,1755517833026,-480.0,0.00022245,3]
[380058681,1755517833036,-480.0,0.00022465,3]
[380058683,1755517833046,-480.0,0.00022465,3]
[380058685,1755517833056,-480.0,0.00022465,3]
[380058687,1755517833066,-1763.72,0.00022465,3]
[380058689,1755517833076,-480.0,0.00022465,3]
[380058690,1755517833085,-480.0,0.00022519,3]
[380058691,1755517833095,-480.0,0.00022519,3]
[380058692,1755517833104,-480.0,0.00022739,3]
[380058693,1755517833113,-265.11968188,0.00022739,3]
[380058694,1755517833125,-43.62031812,0.00022739,3]
[380058695,1755517833135,-491.77494716,0.00022739,3]
[380058696,1755517833145,-1763.72,0.00022739,3]
[380058697,1755517833158,-480.0,0.00022739,3]
[380058698,1755517833168,-160.0,0.00022783,2]
[380058699,1755517833178,-480.0,0.00022793,3]
[380058700,1755517833188,-480.0,0.00022793,3]
[380058701,1755517833198,-843.81736472,0.00022861,2]
[380058702,1755517833208,-216.85420361,0.00022861,2]
[380058703,1755517833219,-154.87707936,0.00022884,2]
[380058704,1755517833229,-361274.7783977,0.000229,2]
[380058707,1755517838284,-593.78754741,0.000229,2]
[380058708,1755517838295,-17032.26420191,0.000229,2]
[380058709,1755517838431,-618.44922971,0.000229,2]
[380058710,1755517838443,-7500.95586622,0.000229,2]
[380058711,1755517838454,-16020.18455752,0.000229,2]
[380058712,1755517838469,-3524.68839864,0.000229,2]
[380058714,1755517838484,-471.54538709,0.000229,2]
[380058715,1755517838495,-600.07165588,0.000229,2]
[380058716,1755517838506,-1791.78345971,0.000229,2]
[380058717,1755517838517,-2456.26312278,0.000229,2]
[380058718,1755517838528,-1496.5043873,0.000229,2]
[380058743,1755518452301,7000.0,0.000285,120]
[380058748,1755518823855,480.46,0.00028767,120]
[380058749,1755518826170,-150.0,0.00018999,2]
[380058750,1755518826196,-158.68,0.00019942,2]
[380058751,1755518826216,-150.0,0.00020369,2]
[380058752,1755518826240,-18.30944868,0.00020892,2]
[380058753,1755518834495,7000.0,0.00028,120]
[380058759,1755518952135,-156.43,0.00019923,2]
[380058760,1755518952160,-312.86,0.00020872,2]
[380058761,1755518952181,-150.0,0.00021,2]
[380058762,1755518952201,-2602.65182889,0.0002104,2]
[380058763,1755518959368,-82.18976361,0.0002104,2]
[380058764,1755518959391,-193.55319619,0.00021817,2]
[380058765,1755518959414,-469.3,0.00021821,2]
[380058766,1755518959436,-1200.0,0.00021916,2]
[380058767,1755518959460,-300.0,0.00021916,2]
[380058768,1755518959483,-20265.810576,0.00021917,2]
[380058771,1755518966327,-24644.93236594,0.00021917,2]
[380058772,1755518966349,-598.66771451,0.00021917,3]
[380058773,1755518966391,-480.0,0.00021917,3]
[380058774,1755518966425,-480.0,0.00021917,3]
[380058775,1755518966448,-480.0,0.00021917,3]
[380058776,1755518966468,-327.9059211,0.00021917,3]
[380058777,1755518966489,-480.0,0.00021917,3]
[380058778,1755518966512,-480.0,0.00021917,3]
[380058779,1755518966532,-593.67,0.00021917,3]
[380058780,1755518966555,-480.0,0.00021917,3]
[380058781,1755518966574,-486.84078953,0.00021917,3]
[380058782,1755518966596,-1610.58,0.00021917,3]
[380058783,1755518966617,-486.64395171,0.00021917,3]
[380058784,1755518966638,-480.0,0.00021917,3]
[380058785,1755518966658,-505.09,0.00021917,3]
[380058786,1755518966678,-480.0,0.00021917,3]
[380058787,1755518966699,-480.0,0.00021917,3]
[380058788,1755518966720,-480.0,0.00021917,3]
[380058789,1755518966740,-313.40841366,0.00021917,3]
[380058790,1755518966760,-480.0,0.00021917,3]
[380058791,1755518966780,-480.0,0.00021917,3]
[380058792,1755518966801,-484.98684834,0.00021917,3]
[380058793,1755518966822,-480.0,0.00021917,3]
[380058794,1755518966843,-480.0,0.00021917,3]
[380058795,1755518966862,-489.61452569,0.00021917,3]
[380058796,1755518966882,-480.0,0.00021917,3]
[380058797,1755518966901,-480.0,0.00021917,3]
[380058798,1755518966922,-480.0,0.00021917,3]
[380058799,1755518966944,-480.0,0.00021917,3]
[380058800,1755518966964,-480.0,0.00021917,3]
[380058801,1755518966985,-480.0,0.00021917,3]
[380058802,1755518967005,-480.0,0.00021917,3]
[380058803,1755518967027,-486.289577,0.00021917,3]
[380058804,1755518967049,-480.0,0.00021917,3]
[380058805,1755518967070,-480.0,0.00021917,3]
[380058806,1755518967090,-305.66730605,0.00021917,3]
[380058807,1755518967112,-480.0,0.00021917,3]
[380058808,1755518967133,-480.0,0.00021917,3]
[380058809,1755518967154,-206.44,0.00021917,3]
[380058810,1755518967175,-480.0,0.00021917,3]
[380058811,1755518967195,-225.0,0.00022,2]
[380058812,1755518967216,-190.987,0.00022168,2]
[380058813,1755518967243,-1610.58,0.00022191,3]
[380058814,1755518967264,-480.0,0.00022191,3]
[380058815,1755518967285,-522.19,0.00022191,3]
[380058816,1755518967307,-480.0,0.00022191,3]
[380058817,1755518967328,-480.0,0.00022191,3]
[380058818,1755518967350,-567.12,0.00022191,3]
[380058819,1755518967468,-356.81,0.00022191,3]
[380058820,1755518967520,-480.0,0.00022191,3]
[380058821,1755518967541,-480.0,0.00022191,3]
[380058822,1755518967564,-480.0,0.00022191,3]
[380058823,1755518967586,-480.0,0.00022191,3]
[380058824,1755518967608,-222.87,0.00022191,3]
[380058825,1755518967629,-290.21,0.00022191,3]
[380058826,1755518967652,-480.0,0.00022191,3]
[380058827,1755518967672,-500.0,0.00022214,2]
[380058828,1755518972692,560.83243407,0.00021817,2]
[380058829,1755518980606,480.0,0.0002874,120]
[380058834,1755519019885,150.0,0.00019999,2]
[380058835,1755519020302,288.97,0.00020952,2]
[380058857,1755519032714,-395.20295616,0.00021817,2]
[380058858,1755519032725,-433.46,0.00021904,2]
[380058859,1755519032736,-619.77477629,0.00021917,3]
[380058860,1755519032746,-500.0,0.00022214,2]
[380058861,1755519032757,-300.0,0.00022464,2]
[380058862,1755519032767,-480.0,0.00022465,3]
[380058863,1755519032778,-480.0,0.00022465,3]
[380058864,1755519032789,-480.0,0.00022465,3]
[380058865,1755519032808,-480.0,0.00022465,3]
[380058866,1755519032828,-233.97,0.00022465,3]
[380058867,1755519032848,-480.0,0.00022465,3]
[380058868,1755519032869,-956.03539016,0.00022548,2]
[380058869,1755519032891,-160.0,0.00022733,2]
[380058870,1755519032914,-480.0,0.00022739,3]
[380058871,1755519032933,-480.0,0.00022739,3]
[380058872,1755519032942,-480.0,0.00022739,3]
[380058873,1755519032952,-480.0,0.00022739,3]
[380058874,1755519032961,-333.97,0.00022739,3]
[380058875,1755519032970,-1008.04807521,0.00022762,2]
[380058876,1755519032980,-577.95,0.00022856,2]
[380058877,1755519032990,-160.0,0.00022891,2]
[380058878,1755519032999,-160.0,0.00022892,2]
[380058879,1755519033008,-207.44093716,0.00022892,2]
[380058880,1755519033021,-9.41326645,0.00022892,2]
[380058881,1755519033031,-1476.36,0.00022898,3]
[380058882,1755519033040,-151.32571547,0.00022976,2]
[380058883,1755519033050,-500.0,0.00022987,2]
[380058884,1755519033059,-500.0,0.00022987,2]
[380058885,1755519033069,-500.0,0.00022987,2]
[380058886,1755519033079,-500.0,0.00022987,2]
[380058887,1755519033088,-500.0,0.00022987,2]
[380058888,1755519033098,-500.0,0.00022987,2]
[380058889,1755519033107,-500.0,0.00022987,2]
[380058890,1755519033119,-237.85986849,0.00022987,2]
[380058891,1755519033129,-500.0,0.00022987,2]
[380058892,1755519033139,-500.0,0.00022987,2]
[380058893,1755519033152,-500.0,0.00022987,2]
[380058894,1755519033170,-500.0,0.00022987,2]
[380058895,1755519033180,-500.0,0.00022987,2]
[380058896,1755519033190,-336.84686162,0.00022987,2]
[380058897,1755519033199,-500.0,0.00022987,2]
[380058898,1755519033209,-500.0,0.00022987,2]
[380058899,1755519033219,-500.0,0.00022987,2]
[380058900,1755519033229,-500.0,0.00022987,2]
[380058901,1755519033239,-500.0,0.00022987,2]
[380058902,1755519033252,-500.0,0.00022987,2]
[380058903,1755519033262,-571.79295581,0.00022987,2]
[380058904,1755519033272,-500.0,0.00022987,2]
[380058905,1755519033283,-500.0,0.00022987,2]
[380058906,1755519033294,-443.23430837,0.00022987,2]
[380058907,1755519033304,-500.0,0.00022987,2]
[380058908,1755519033314,-291.71826046,0.00022987,2]
[380058909,1755519033326,-500.0,0.00022987,2]
[380058910,1755519033336,-500.0,0.00022987,2]
[380058911,1755519033346,-500.0,0.00022987,2]
[380058912,1755519033356,-503.30186603,0.00022987,2]
[380058913,1755519033368,-500.0,0.00022987,2]
[380058914,1755519033378,-500.0,0.00022987,2]
[380058915,1755519033387,-500.0,0.00022987,2]
[380058916,1755519033397,-500.0,0.00022987,2]
[380058917,1755519033407,-555.32509015,0.00022987,2]
[380058918,1755519033417,-500.0,0.00022987,2]
[380058919,1755519033426,-500.0,0.00022987,2]
[380058920,1755519033436,-500.0,0.00022987,2]
[380058921,1755519033445,-500.0,0.00022987,2]
[380058922,1755519033455,-1000.0,0.00022989,2]
[380058923,1755519033465,-1115.73493857,0.00023,2]
[380058924,1755519033474,-232.18122251,0.00023,3]
[380058925,1755519033484,-160.0,0.00023,3]
[380058926,1755519033493,-216.85420361,0.00023,3]
[380058927,1755519033503,-480.0,0.00023013,3]
[380058928,1755519033512,-412.53886212,0.00023013,3]
[380058947,1755519038500,-67.46113788,0.00023013,3]
[380058948,1755519038509,-284.7,0.00023013,3]
[380058949,1755519038519,-1476.36,0.00023172,3]
[380058950,1755519038528,-574.76789432,0.00023173,2]
[380058951,1755519038538,-799.4,0.00023208,3]
[380058952,1755519038547,-399.7,0.00023208,3]
[380058953,1755519038557,-74.54009951,0.00023208,3]
[380058954,1755519038568,-125.30990049,0.00023208,3]
[380058955,1755519038578,-599.58,0.00023208,3]
[380058956,1755519038591,-742.91256373,0.00023218,2]
[380058957,1755519038629,-1630.92101454,0.00023218,2]
[380058958,1755519038648,-312.16666667,0.00023218,2]
[380059045,1755519040536,-620.79206182,0.00023218,2]
[380059046,1755519040546,-102848.86732413,0.00023218,2]
[380059047,1755519040590,-23554.8294421,0.00023218,2]
[380059092,1755519043591,-440.83159151,0.00023218,2]
[380059093,1755519043615,-272.91066154,0.00023218,2]
[380059106,1755519068370,201.065863,0.00013699,2]
[380059107,1755519100466,50.60348294,0.00020022,2]
[380059108,1755519120280,288.0,0.00028767,120]
[380059121,1755520044128,-150.0,0.00019937,2]
[380059122,1755520044149,-219.04922632,0.00019937,2]
[380059123,1755520044173,-44.41543046,0.00020914,2]
[380059124,1755520051122,-231.39456954,0.00020914,2]
[380059125,1755520051144,-413.72,0.00021865,2]
[380059126,1755520051165,-300.0,0.00021915,2]
[380059127,1755520051186,-26.65284195,0.00021915,2]
[380059132,1755520115539,594.68366921,0.00028767,120]
[380059137,1755520153089,-150.0,0.00020014,2]
[380059138,1755520153112,-254.44,0.00020967,2]
[380059139,1755520153132,-273.34715805,0.00021915,2]
[380059140,1755520153154,-1061.0,0.00021916,2]
[380059141,1755520153174,-272.0,0.00021916,2]
[380059142,1755520153194,-500.0,0.00021917,3]
[380059143,1755520153214,-480.0,0.00021917,2]
[380059144,1755520153236,-381.67,0.0002192,2]
[380059145,1755520153256,-300.0,0.00021969,2]
[380059146,1755520153276,-150.0,0.0002197,2]
[380059147,1755520153296,-6598.72574584,0.0002197,2]
[380059148,1755520153317,-2310.41810318,0.00022001,5]
[380059156,1755520220650,150.0,0.00020014,2]
[380059157,1755520221222,234.43,0.00020967,2]
[380059158,1755520221566,351.65,0.0002192,2]
[380059205,1755520231815,-468.87,0.00022873,2]
[380059207,1755520231825,-216.85420361,0.00022876,2]
[380059209,1755520231834,-247.43,0.0002289,10]
[380059211,1755520231844,-273380.51658329,0.000229,2]
[380059215,1755520231874,-9748.83615948,0.000229,2]
[380059283,1755520237803,-434.80599606,0.00022899,2]
[380059284,1755520237813,-199.07980672,0.00022899,2]
[380059285,1755520237822,-220.59040396,0.00022899,2]
[380059286,1755520237853,-279.40959604,0.00022899,2]
[380059287,1755520237873,-500.0,0.00022899,2]
[380059288,1755520237884,-229.38165937,0.00022899,2]
[380059289,1755520237897,-500.0,0.00022899,2]
[380059290,1755520237907,-500.0,0.00022899,2]
[380059291,1755520237916,-500.0,0.00022899,2]
[380059292,1755520237926,-467.90235026,0.00022899,2]
[380059294,1755520237936,-419.00773677,0.00022899,2]
[380059296,1755520237946,-500.0,0.00022899,2]
[380059298,1755520237956,-500.0,0.00022899,2]
[380059300,1755520237965,-276.03193987,0.00022899,2]
[380059302,1755520237974,-7868.66659906,0.000229,2]
[380059308,1755520238024,-65.75391488,0.000229,2]
[380059381,1755520240190,-339.95,0.0002289,3]
[380059382,1755520240199,-19149.70604152,0.000229,2]
[380059383,1755520240210,-7862.08833987,0.000229,2]
[380059414,1755520245946,-45.94051742,0.000229,2]
[380059415,1755520245957,-658.21204395,0.000229,2]
[380059416,1755520300839,12.23926648,0.00020006,2]
[380059417,1755520301070,186.616467,0.00013699,2]
[380059421,1755521013310,1027.1,0.00028757,120]
[380059423,1755521192119,-177.13331112,0.00018655,2]
[380059424,1755521192144,-269.02038122,0.00019232,2]
[380059425,1755521209127,3056.67,0.0001855,2]
[380059426,1755521231113,-150.0,0.0002002,2]
[380059427,1755521231148,-194.76711352,0.00020267,2]
[380059428,1755521359110,-5000.0,0.0001904,2]
[380059429,1755521359132,-179.69887413,0.00019253,2]
[380059430,1755521359158,-150.0,0.00019955,2]
[380059431,1755521359184,-900.23666112,0.000202,14]
[380059432,1755521359209,-120.00192395,0.00020906,2]
[380059433,1755521367093,-5000.0,0.00020697,2]
[380059434,1755521367242,-146.96807605,0.00020906,2]
[380059435,1755521367273,-400.45,0.00021856,2]
[380059436,1755521367295,-588.9282996,0.0002211,2]
[380059437,1755521367316,-867.0,0.0002219,2]
[380059438,1755521367337,-348.62945388,0.000222,2]
[380059447,1755521432144,-150.0,0.00019952,2]
[380059448,1755521432154,-191.12720039,0.00020902,2]
[380059509,1755521438079,-55.03279961,0.00020902,2]
[380059511,1755521438090,-369.24,0.00021852,2]
[380059513,1755521438099,-370.34387874,0.00021978,2]
[380059687,1755521440429,-4629.65612126,0.00021978,2]
[380059688,1755521440439,-232.15836912,0.000222,2]
[380059689,1755521440449,-432.0667886,0.00022247,2]
[380059690,1755521440458,-432.0667886,0.00022247,2]
[380059691,1755521440468,-580.787823,0.00022278,2]
[380059692,1755521440478,-580.787823,0.000223,2]
[380059693,1755521440487,-669.0,0.00022377,2]
[380059694,1755521440496,-300.0,0.00022377,2]
[380059695,1755521440506,-300.0,0.00022377,2]
[380059696,1755521440516,-300.0,0.00022377,2]
[380059697,1755521440525,-300.0,0.00022377,2]
[380059698,1755521440534,-580.787823,0.00022378,2]
[380059699,1755521440549,-580.787823,0.00022378,2]
[380059700,1755521440561,-580.787823,0.00022378,2]
[380059702,1755521440571,-580.787823,0.00022378,2]
[380059703,1755521440582,-1491.38416678,0.00022521,2]
[380059704,1755521440592,-492.32,0.00022803,2]
[380059705,1755521440602,-432.0667886,0.00022854,2]
[380059706,1755521440612,-432.0667886,0.00022854,2]
[380059707,1755521440622,-432.0667886,0.00022854,2]
[380059708,1755521440631,-432.0667886,0.00022854,2]
[380059709,1755521440640,-432.0667886,0.00022854,2]
[380059710,1755521440651,-480.0,0.00022899,3]
[380059711,1755521440660,-480.0,0.00022899,3]
[380059712,1755521440669,-1429.01,0.00022899,3]
[380059713,1755521440679,-513.03,0.000229,30]
[380059714,1755521440688,-863.812254,0.000229,2]
[380059715,1755521440698,-485.18316266,0.0002293,3]
[380059716,1755521440708,-321.5711078,0.00022932,2]
[380059717,1755521440717,-293.7943279,0.00022932,2]
[380059718,1755521440727,-160.8129855,0.00022932,2]
[380059719,1755521440736,-160.8129855,0.00022932,2]
[380059720,1755521440745,-580.787823,0.00022932,2]
[380059721,1755521440755,-160.8129855,0.00022932,2]
[380059722,1755521440765,-580.787823,0.00022932,2]
[380059723,1755521440774,-580.787823,0.00022932,2]
[380059724,1755521440783,-160.8129855,0.00022932,2]
[380059725,1755521440793,-580.787823,0.00022932,2]
[380059726,1755521440807,-480.0,0.0002297,3]
[380059727,1755521440816,-480.0,0.0002297,3]
[380059728,1755521440826,-480.0,0.0002297,3]
[380059729,1755521440835,-480.0,0.0002297,3]
[380059730,1755521440844,-480.0,0.0002297,3]
[380059731,1755521440854,-480.0,0.0002297,3]
[380059732,1755521440874,-480.0,0.00022986,3]
[380059733,1755521440891,-480.0,0.00022986,3]
[380059734,1755521440902,-480.0,0.00022986,3]
[380059735,1755521440912,-484.82,0.00022986,3]
[380059736,1755521440929,-618.63,0.00022986,3]
[380059737,1755521440965,-480.0,0.00022986,3]